bitfinex/quotes_SOLUSD_20240626
["timestamp","ask_amount","ask_price","bid_price","bid_amount"]
[1719370029799,0.34,139.2,139.12,17.9696]
[1719370029991,0.34,139.2,139.12,25.1575]
[1719370029992,7.1848,139.19,139.12,25.1575]
[1719370030182,15.7203,139.18,139.12,25.1575]
[1719370032399,15.7203,139.18,139.12,17.9696]
[1719370033316,15.7203,139.18,139.12,25.1574]
[1719370035518,15.7203,139.18,139.12,17.9696]
[1719370035519,0.34,139.18,139.12,17.9696]
[1719370035819,6.6255,139.21,139.16,7.1859]
[1719370037094,6.6255,139.21,139.17,7.1852]
[1719370037294,6.6255,139.21,139.16,17.9644]
[1719370038013,6.6255,139.21,139.16,25.1502]
[1719370038506,6.6255,139.21,139.16,17.9644]
[1719370038718,6.6255,139.21,139.14,7.1865]
[1719370039015,13.8092,139.21,139.14,7.1865]
[1719370039821,7.524,139.2,139.14,7.1865]
[1719370039992,0.34,139.2,139.14,7.1865]
[1719370040409,7.5243,139.2,139.13,17.968]
[1719370040723,7.1859,139.17,139.1,25.1607]
[1719370040905,0.34,139.16,139.07,17.9756]
[1719370041109,7.5261,139.16,139.09,7.1895]
[1719370042222,7.1874,139.14,139.07,25.166]
[1719370042439,0.34,139.13,139.07,25.166]
[1719370044124,7.1883,139.12,139.04,17.9798]
[1719370044327,0.17,139.11,139.06,7.1906]
[1719370044509,0.17,139.11,139.07,7.1905]
[1719370044931,0.17,139.12,139.07,7.1905]
[1719370045424,0.17,139.13,139.07,7.1905]
[1719370045425,0.34,139.13,139.07,7.1905]
[1719370046531,0.34,139.13,139.08,7.19]
[1719370046714,0.17,139.12,139.08,7.19]
[1719370046920,7.527,139.14,139.08,7.19]
[1719370047421,7.1877,139.13,139.07,7.1905]
[1719370047726,0.34,139.12,139.07,7.1905]
[1719370048835,0.34,139.12,139.06,25.1685]
[1719370049325,7.1888,139.11,139.05,7.1916]
[1719370049531,0.34,139.1,139.05,7.1916]
[1719370050130,0.17,139.1,139.05,7.1916]
[1719370050332,0.34,139.11,139.05,7.1916]
[1719370050635,7.529,139.11,139.04,7.192]
[1719370051233,7.1891,139.1,139.04,7.192]
[1719370051420,0.34,139.09,139.04,7.192]
[1719370052133,0.34,139.1,139.04,7.192]
[1719370052318,0.34,139.1,139.05,7.1916]
[1719370053524,0.34,139.1,139.04,7.1919]
[1719370054434,0.17,139.09,139.04,7.1919]
[1719370054627,0.34,139.09,139.04,7.1919]
[1719370054927,0.34,139.09,139.05,17.9788]
[1719370055435,15.4735,139.12,139.05,17.9788]
[1719370055618,15.4735,139.12,139.07,17.9759]
[1719370055938,15.4735,139.12,139.08,7.1899]
[1719370057744,15.4735,139.12,139.07,25.1663]
[1719370058225,15.4735,139.12,139.07,17.9759]
[1719370058644,15.4735,139.12,139.06,7.191]
[1719370058645,22.6616,139.12,139.06,7.191]
[1719370058938,22.6616,139.12,139.02,7.1931]
[1719370058939,7.1897,139.09,139.02,7.1931]
[1719370059242,0.17,139.1,139.03,7.1923]
[1719370059417,0.34,139.11,139.03,7.1923]
[1719370060327,7.1897,139.09,139.01,70.1037]
[1719370060543,0.34,139.08,139.02,7.193]
[1719370060732,0.34,139.08,139.03,7.1926]
[1719370061242,0.17,139.07,139.01,17.9837]
[1719370061424,0.34,139.07,139.02,7.1927]
[1719370061828,0.34,139.07,139.03,7.1926]
[1719370062243,0.34,139.07,139.02,7.1931]
[1719370063040,0.34,139.07,139.01,25.1772]
[1719370063430,0.34,139.07,139.01,17.9837]
[1719370063431,16.2532,139.06,139.01,17.9837]
[1719370063638,0.34,139.05,139.01,17.9837]
[1719370063935,0.34,139.05,139.01,25.1772]
[1719370065518,0.34,139.05,139.01,17.9837]
[1719370065844,6.1186,139.08,139.01,17.9837]
[1719370066022,0.34,139.07,139.03,7.1923]
[1719370068583,0.34,139.07,139.02,7.193]
[1719370069148,6.1186,139.08,139.03,17.9812]
[1719370069451,15.8589,139.1,139.05,7.1913]
[1719370070229,15.8589,139.1,139.04,7.192]
[1719370070558,15.8589,139.1,139.05,7.1916]
[1719370071161,7.1898,139.09,139.03,17.9812]
[1719370071333,7.1904,139.08,139.01,22.761]
[1719370071527,7.1903,139.08,139.01,7.1936]
[1719370071728,7.1903,139.08,139.0,17.9848]
[1719370071729,7.1903,139.08,139.02,7.1931]
[1719370072240,7.1909,139.07,139.0,25.1789]
[1719370072541,7.1901,139.08,139.0,17.9848]
[1719370072855,0.17,139.07,139.0,17.9848]
[1719370073351,0.34,139.07,139.01,7.1935]
[1719370074258,7.1916,139.06,138.99,7.1945]
[1719370074424,0.17,139.05,139.0,7.1941]
[1719370074629,0.17,139.05,138.97,33.5559]
[1719370074630,0.17,139.06,139.01,7.1932]
[1719370075237,0.34,139.07,139.01,7.1932]
[1719370076255,7.5307,139.07,139.01,7.1932]
[1719370076458,7.5307,139.07,139.0,7.194]
[1719370077126,7.1911,139.06,138.99,25.1807]
[1719370077348,0.34,139.05,138.99,25.1807]
[1719370077551,0.34,139.05,139.0,7.1942]
[1719370077929,0.34,139.06,139.0,7.1942]
[1719370081463,7.5312,139.06,139.0,7.1942]
[1719370081838,0.34,139.06,139.0,7.1942]
[1719370083972,7.5311,139.06,139.0,7.1942]
[1719370084149,7.5311,139.06,138.99,25.1807]
[1719370084470,7.5311,139.06,139.0,7.1942]
[1719370084864,7.5311,139.06,138.99,25.1807]
[1719370086260,7.1919,139.05,138.99,25.1807]
[1719370086474,0.34,139.04,138.99,25.1807]
[1719370087167,0.34,139.04,139.0,7.1942]
[1719370088267,0.34,139.04,139.0,6.6942]
[1719370090544,6.2874,139.05,139.01,7.1936]
[1719370092068,6.2874,139.05,139.01,17.9837]
[1719370092755,6.2874,139.05,139.0,7.1939]
[1719370092967,6.2874,139.05,139.0,7.1941]
[1719370093146,0.34,139.04,138.99,7.1945]
[1719370093462,6.2874,139.05,138.99,7.1945]
[1719370093859,6.2874,139.05,139.0,7.194]
[1719370095554,6.2874,139.05,138.98,70.1072]
[1719370095869,6.2874,139.05,139.0,7.1942]
[1719370096049,6.2874,139.05,138.98,70.1072]
[1719370096050,15.8589,139.1,139.04,7.1921]
[1719370096236,15.8589,139.1,139.05,7.1916]
[1719370096440,15.8589,139.1,139.06,7.1908]
[1719370096669,15.8589,139.1,139.04,17.9801]
[1719370096972,15.8589,139.1,139.04,25.1719]
[1719370097846,0.17,139.09,139.04,17.9801]
[1719370098045,0.34,139.09,139.04,25.1721]
[1719370099680,7.5296,139.09,139.02,52.12]
[1719370099972,0.34,139.09,139.04,7.192]
[1719370101159,0.34,139.09,139.05,7.1916]
[1719370104661,0.34,139.09,139.07,26.1]
[1719370104860,0.34,139.09,139.05,26.1]
[1719370105173,7.5297,139.09,139.03,25.1738]
[1719370105345,7.5297,139.09,139.04,26.1]
[1719370105546,7.5297,139.09,139.05,26.1]
[1719370105848,15.8589,139.1,139.03,17.9813]
[1719370106055,15.8589,139.1,139.07,26.1]
[1719370107455,15.8589,139.1,139.03,25.1738]
[1719370107660,0.34,139.09,139.03,25.1738]
[1719370107976,7.5299,139.09,139.03,17.9813]
[1719370108266,7.5299,139.09,139.06,26.1]
[1719370108575,15.8589,139.1,139.06,26.1]
[1719370108741,15.8589,139.1,139.05,7.1915]
[1719370109076,15.8589,139.1,139.04,7.192]
[1719370109243,15.8589,139.1,139.03,25.1738]
[1719370109443,0.34,139.09,139.04,7.192]
[1719370110048,0.34,139.09,139.03,25.1737]
[1719370112471,0.34,139.09,139.04,7.1921]
[1719370113375,0.34,139.09,139.03,17.9813]
[1719370113554,7.5296,139.09,139.03,25.1738]
[1719370114269,7.1902,139.08,139.02,7.193]
[1719370114571,0.34,139.07,139.02,7.193]
[1719370114761,0.17,139.07,139.02,7.193]
[1719370115148,0.17,139.08,139.02,7.193]
[1719370115585,0.17,139.08,139.03,7.1925]
[1719370118185,0.34,139.09,139.03,7.1925]
[1719370118686,7.5295,139.09,139.03,7.1925]
[1719370119684,7.5295,139.09,139.02,25.1753]
[1719370120768,1.34951483,139.08,138.98,52.2]
[1719370121102,0.34,139.07,139.01,7.1935]
[1719370121763,0.34,139.07,139.01,25.1774]
[1719370122783,0.34,139.07,139.0,7.194]
[1719370122971,24.17581721,139.06,138.98,17.9874]
[1719370123279,7.532,139.05,138.98,25.1822]
[1719370124470,7.532,139.05,138.96,35.979]
[1719370124471,7.1927,139.03,138.96,7.1959]
[1719370124675,7.1927,139.03,138.94,52.2]
[1719370124676,0.34,139.05,138.94,52.2]
[1719370125200,0.34,139.05,138.93,21.381]
[1719370125402,8.34208539,139.04,138.96,17.9899]
[1719370125704,0.34,139.03,138.97,7.1957]
[1719370126172,0.34,139.03,138.96,17.9899]
[1719370126376,0.34,139.03,138.98,17.9878]
[1719370127410,0.34,139.03,138.99,7.1946]
[1719370127902,0.34,139.03,138.98,25.1829]
[1719370128081,0.34,139.03,138.98,17.9878]
[1719370129207,0.34,139.03,138.95,70.1911]
[1719370129495,7.5328,139.03,138.96,7.1963]
[1719370130699,7.5328,139.03,138.98,26.13]
[1719370130903,0.34,139.03,138.99,26.13]
[1719370131475,0.34,139.03,139.0,26.13]
[1719370132190,15.53438539,139.04,139.0,26.13]
[1719370133490,15.53438539,139.04,138.99,26.13]
[1719370134202,0.17,139.03,138.99,26.13]
[1719370134507,0.34,139.03,138.99,26.13]
[1719370134801,0.34,139.03,138.98,26.13]
[1719370136096,7.5327,139.03,138.98,26.13]
[1719370136608,0.34,139.03,138.98,26.13]
[1719370137996,7.5328,139.03,138.97,25.1847]
[1719370138184,7.5328,139.03,138.99,26.13]
[1719370139089,24.17581721,139.06,139.02,26.13]
[1719370139692,24.17581721,139.06,138.99,17.9863]
[1719370139899,31.36721721,139.06,139.02,26.13]
[1719370140285,0.17,139.05,139.02,26.13]
[1719370140491,8.34208539,139.09,139.04,26.13]
[1719370140707,8.34208539,139.09,139.05,26.13]
[1719370141012,15.53168539,139.09,139.05,26.13]
[1719370141504,15.53168539,139.09,139.02,26.13]
[1719370141505,7.1903,139.08,139.02,104.52]
[1719370141685,7.1903,139.08,139.01,25.1772]
[1719370141890,7.1903,139.08,139.04,26.13]
[1719370142202,8.34208539,139.09,139.04,7.1921]
[1719370142383,8.34208539,139.09,139.06,26.13]
[1719370142829,16.4337,139.1,139.07,26.13]
[1719370143120,7.1897,139.09,139.03,17.9812]
[1719370143328,16.4337,139.1,139.01,7.1937]
[1719370143488,7.1902,139.08,139.04,26.13]
[1719370143689,6.6902,139.08,139.04,26.13]
[1719370143885,7.1897,139.09,139.04,26.13]
[1719370144183,16.4337,139.1,139.06,26.13]
[1719370144387,16.4337,139.1,139.02,104.52]
[1719370144388,16.4337,139.1,139.08,7.1899]
[1719370144586,283.06788539,139.13,139.08,44.1048]
[1719370145313,290.25538539,139.13,139.08,26.13]
[1719370145520,290.25538539,139.13,139.07,26.13]
[1719370145695,283.06788539,139.13,139.07,26.13]
[1719370145895,283.06788539,139.13,139.06,26.13]
[1719370146210,282.56788539,139.13,139.06,26.13]
[1719370146510,7.1889,139.11,139.06,26.13]
[1719370146810,7.3591,139.1,139.06,26.13]
[1719370147000,7.1886,139.11,139.06,26.13]
[1719370147309,0.17,139.1,139.06,26.13]
[1719370147509,7.1887,139.11,139.06,26.13]
[1719370147715,0.34,139.12,139.06,33.321]
[1719370148095,0.34,139.12,139.07,26.13]
[1719370149420,7.5281,139.12,139.07,26.13]
[1719370150416,0.17,139.12,139.08,26.13]
[1719370150592,282.56788539,139.13,139.08,26.13]
[1719370151416,289.75538539,139.13,139.08,26.13]
[1719370152224,282.56788539,139.13,139.08,26.13]
[1719370152709,282.56788539,139.13,139.09,7.1895]
[1719370152923,7.1863,139.16,139.1,7.1889]
[1719370153100,29.26662801,139.17,139.12,26.13]
[1719370153302,30.78268539,139.17,139.12,26.13]
[1719370154212,30.78278539,139.17,139.12,26.13]
[1719370155510,0.17,139.16,139.12,26.13]
[1719370155705,23.59718539,139.17,139.12,26.13]
[1719370156498,15.901,139.23,139.16,33.3159]
[1719370156806,24.24308539,139.23,139.18,26.13]
[1719370158715,31.42548539,139.23,139.18,26.13]
[1719370158921,0.17,139.22,139.18,26.13]
[1719370159101,0.34,139.22,139.18,26.13]
[1719370159509,8.34208539,139.23,139.19,26.13]
[1719370159713,24.41398539,139.27,139.2,26.13]
[1719370159918,7.1812,139.26,139.21,26.13]
[1719370160718,7.1812,139.26,139.19,7.1842]
[1719370160907,9.88022966,139.26,139.19,7.1842]
[1719370161114,15.52328539,139.26,139.19,7.1842]
[1719370161317,7.1822,139.24,139.18,17.9614]
[1719370161824,0.17,139.23,139.18,17.9614]
[1719370162213,7.5223,139.23,139.16,7.1858]
[1719370162404,7.5223,139.23,139.15,17.9653]
[1719370162405,7.1837,139.21,139.15,17.9653]
[1719370162604,0.34,139.2,139.15,25.1517]
[1719370163022,16.5769,139.2,139.12,17.9693]
[1719370163198,7.1844,139.19,139.12,25.1569]
[1719370163403,0.34,139.18,139.12,25.1569]
[1719370164026,0.34,139.18,139.13,7.1874]
[1719370164524,0.34,139.18,139.12,17.9693]
[1719370165403,0.34,139.19,139.13,7.1874]
[1719370165602,7.5244,139.19,139.13,7.1874]
[1719370165804,0.34,139.19,139.13,7.1874]
[1719370167025,0.34,139.19,139.12,17.9693]
[1719370167403,0.34,139.19,139.14,7.1866]
[1719370167618,16.2369,139.2,139.14,7.1866]
[1719370168629,16.2369,139.2,139.12,17.9693]
[1719370168924,7.185,139.18,139.12,17.9693]
[1719370169128,0.17,139.19,139.12,52.08]
[1719370169326,16.2369,139.2,139.12,52.08]
[1719370169534,0.17,139.19,139.14,7.1866]
[1719370169825,16.2369,139.2,139.16,17.9647]
[1719370170027,16.2369,139.2,139.17,7.1853]
[1719370170214,16.2369,139.2,139.16,25.1505]
[1719370170413,16.2369,139.2,139.15,7.1863]
[1719370170728,16.2369,139.2,139.14,7.1868]
[1719370171829,16.2369,139.2,139.15,7.1863]
[1719370173133,0.17,139.19,139.12,7.1879]
[1719370173318,0.17,139.19,139.13,7.1873]
[1719370173319,0.34,139.19,139.13,7.1873]
[1719370173673,0.34,139.19,139.14,7.1869]
[1719370173816,0.34,139.19,139.13,7.1874]
[1719370174218,7.5246,139.19,139.12,17.9696]
[1719370174517,0.34,139.19,139.14,7.1865]
[1719370174710,0.34,139.19,139.13,7.1873]
[1719370174934,0.34,139.19,139.14,7.1869]
[1719370175117,0.17,139.19,139.15,7.1863]
[1719370175449,6.1635,139.22,139.16,25.1499]
[1719370175619,0.17,139.21,139.16,25.1499]
[1719370176642,0.34,139.21,139.16,25.1499]
[1719370177451,0.34,139.21,139.16,17.9641]
[1719370179347,7.5234,139.21,139.15,7.1863]
[1719370179656,7.184,139.2,139.13,25.155]
[1719370179821,0.34,139.19,139.13,25.155]
[1719370181049,7.5245,139.19,139.13,17.9679]
[1719370181747,7.5245,139.19,139.13,25.1554]
[1719370181953,0.34,139.19,139.13,25.1554]
[1719370182450,7.5245,139.19,139.13,25.1554]
[1719370182749,0.34,139.19,139.14,7.1868]
[1719370182939,0.34,139.19,139.13,25.1552]
[1719370183131,7.5246,139.19,139.13,25.1552]
[1719370184156,7.185,139.18,139.11,7.1881]
[1719370184855,7.185,139.18,139.12,26.07]
[1719370185037,7.185,139.18,139.13,26.07]
[1719370185430,7.185,139.18,139.12,7.188]
[1719370185431,13.6213,139.16,139.1,17.9716]
[1719370185744,0.34,139.15,139.1,51.2306]
[1719370186045,0.34,139.15,139.11,33.2585]
[1719370186338,6.4354,139.16,139.11,7.1885]
[1719370186652,16.0419,139.17,139.14,26.07]
[1719370186839,7.185,139.18,139.11,7.1881]
[1719370187024,7.185,139.18,139.12,26.07]
[1719370187447,7.1854,139.17,139.12,26.07]
[1719370188150,7.1854,139.17,139.1,25.161]
[1719370188325,7.1854,139.17,139.11,26.07]
[1719370188526,7.1854,139.17,139.11,7.1884]
[1719370188741,7.525,139.18,139.11,7.1884]
[1719370188933,7.525,139.18,139.11,33.2584]
[1719370189134,7.525,139.18,139.12,26.07]
[1719370189649,2.69902966,139.2,139.14,7.1869]
[1719370189650,9.88342966,139.2,139.14,7.1869]
[1719370189832,9.88342966,139.2,139.14,33.2569]
[1719370189833,0.34,139.19,139.14,33.2569]
[1719370190434,7.5244,139.19,139.14,26.07]
[1719370190845,0.34,139.19,139.14,26.07]
[1719370191048,0.34,139.19,139.14,33.2569]
[1719370191230,7.5244,139.19,139.14,26.07]
[1719370192348,7.5244,139.19,139.13,26.07]
[1719370192732,0.34,139.19,139.1,7.1889]
[1719370193771,7.186,139.16,139.1,7.1889]
[1719370194633,0.17,139.15,139.1,7.1889]
[1719370194833,0.34,139.15,139.1,7.1889]
[1719370195135,7.1853,139.18,139.11,7.1884]
[1719370195335,7.3555,139.17,139.11,7.1884]
[1719370195541,7.3555,139.17,139.1,7.1888]
[1719370195838,0.17,139.16,139.1,7.1888]
[1719370196543,7.3561,139.16,139.1,7.1888]
[1719370196742,0.17,139.15,139.1,7.1888]
[1719370198170,15.3566,139.16,139.11,25.159]
[1719370198355,15.3566,139.16,139.12,7.1878]
[1719370198666,15.1866,139.16,139.13,25.1556]
[1719370199157,15.1866,139.16,139.1,17.972]
[1719370199546,15.1866,139.16,139.12,7.1878]
[1719370203156,15.1866,139.16,139.12,17.9694]
[1719370203463,15.1866,139.16,139.12,25.157]
[1719370204642,15.1866,139.16,139.12,17.9694]
[1719370205259,15.1866,139.16,139.09,17.9731]
[1719370205470,22.373,139.16,139.09,25.1623]
[1719370207967,22.373,139.16,139.1,7.189]
[1719370209248,15.1866,139.16,139.1,7.189]
[1719370210467,15.1866,139.16,139.09,17.9731]
[1719370210468,15.1866,139.16,139.11,7.1883]
[1719370210770,22.3726,139.16,139.1,7.189]
[1719370211265,15.1866,139.16,139.1,7.189]
[1719370211766,15.1866,139.16,139.11,7.1882]
[1719370214771,15.1866,139.16,139.13,26.07]
[1719370216870,6.0681,139.21,139.15,26.07]
[1719370217052,6.0681,139.21,139.16,26.07]
[1719370218151,6.0681,139.21,139.18,26.07]
[1719370218349,15.8561,139.22,139.19,26.07]
[1719370218765,6.4907,139.24,139.2,26.07]
[1719370218951,22.3781,139.25,139.2,26.07]
[1719370219162,15.1965,139.25,139.2,26.07]
[1719370219350,15.1965,139.25,139.21,26.07]
[1719370222568,15.1965,139.25,139.22,26.07]
[1719370233076,15.1965,139.25,139.21,7.1832]
[1719370233280,15.1965,139.25,139.22,26.07]
[1719370233974,15.1965,139.25,139.21,33.2532]
[1719370234176,15.1965,139.25,139.22,26.07]
[1719370235063,16.5627255,139.28,139.2,35.918]
[1719370235284,0.8588255,139.28,139.27,26.07]
[1719370235867,0.8588255,139.28,139.27,33.2502]
[1719370236894,0.8588255,139.28,139.27,26.07]
[1719370237389,0.8588255,139.28,139.27,33.2502]
[1719370238874,0.8588255,139.28,139.27,53.2502]
[1719370243091,0.8588255,139.28,139.27,81.0378]
[1719370243273,0.8588255,139.28,139.27,97.1815]
[1719370244272,0.8588255,139.28,139.27,104.3835]
[1719370246096,6.2278,139.39,139.34,7.1765]
[1719370246600,6.2278,139.39,139.35,26.07]
[1719370247111,0.8588255,139.41,139.37,26.07]
[1719370247393,0.8588255,139.41,139.37,33.2447]
[1719370247701,0.8588255,139.41,139.37,7.175]
[1719370247905,0.8588255,139.41,139.37,33.245]
[1719370248100,0.8588255,139.41,139.37,26.07]
[1719370249890,0.8588255,139.41,139.37,33.2447]
[1719370251676,0.8588255,139.41,139.37,26.07]
[1719370253403,0.8588255,139.41,139.36,51.1842]
[1719370254506,24.3042255,139.41,139.33,17.942]
[1719370254794,24.3042255,139.41,139.34,26.07]
[1719370255319,24.3042255,139.41,139.35,7.1761]
[1719370255495,17.1311255,139.41,139.35,7.1761]
[1719370256901,24.3041255,139.41,139.35,7.1761]
[1719370257815,24.3041255,139.41,139.3,17.9461]
[1719370257816,0.17,139.4,139.3,17.9461]
[1719370257983,7.1752,139.37,139.3,51.1944]
[1719370258184,7.1752,139.37,139.31,7.1782]
[1719370258807,7.1746,139.38,139.32,7.1776]
[1719370259505,19.37204271,139.41,139.3,35.8927]
[1719370259804,19.37204271,139.41,139.35,7.1757]
[1719370260009,19.37204271,139.41,139.36,1.43269363]
[1719370260821,19.37204271,139.41,139.36,2.86617842]
[1719370262415,19.37204271,139.41,139.36,17.9389]
[1719370262602,17.1311255,139.41,139.38,7.1744]
[1719370262801,17.1311255,139.41,139.37,7.175]
[1719370262990,17.1311255,139.41,139.36,25.1143]
[1719370263822,17.1311255,139.41,139.33,15.5278]
[1719370263823,17.1311255,139.41,139.33,17.9423]
[1719370264116,7.1757,139.36,139.27,59.5084]
[1719370264294,13.5138,139.36,139.28,7.1793]
[1719370264490,13.5138,139.36,139.27,39.5084]
[1719370264689,16.5553,139.35,139.29,17.947]
[1719370265101,16.5553,139.35,139.32,7.1777]
[1719370265915,16.5553,139.35,139.31,25.1232]
[1719370267205,16.5553,139.35,139.32,7.1776]
[1719370267716,16.5553,139.35,139.31,17.9452]
[1719370268019,16.5553,139.35,139.3,7.1784]
[1719370268192,16.5553,139.35,139.25,5.72750113]
[1719370268392,7.1781,139.32,139.25,25.1336]
[1719370268600,7.1777,139.33,139.25,25.1336]
[1719370268806,0.34,139.32,139.27,7.1802]
[1719370269009,23.7315,139.35,139.28,7.1796]
[1719370269211,0.17,139.34,139.29,7.179]
[1719370269718,30.0,139.32,139.29,7.179]
[1719370271432,30.0,139.32,139.28,7.1796]
[1719370272412,30.0,139.32,139.24,17.9539]
[1719370272813,30.0,139.32,139.26,7.1804]
[1719370273113,30.0,139.32,139.26,7.1806]
[1719370273293,30.0,139.32,139.24,25.1352]
[1719370273493,37.1778,139.32,139.25,7.1812]
[1719370273914,37.1778,139.32,139.26,7.1807]
[1719370274110,30.0,139.32,139.26,7.1807]
[1719370274417,30.0,139.32,139.23,57.5299]
[1719370274601,30.0,139.32,139.29,7.1788]
[1719370274813,16.5553,139.35,139.28,17.949]
[1719370275123,16.5553,139.35,139.34,7.1766]
[1719370275332,6.3381,139.36,139.34,7.1765]
[1719370275495,6.3381,139.36,139.34,17.9409]
[1719370276102,15.0108,139.38,139.34,25.1174]
[1719370276511,15.0108,139.38,139.33,7.1771]
[1719370277321,0.8588255,139.41,139.38,7.1741]
[1719370277511,0.8588255,139.41,139.34,0.17]
[1719370277512,0.8588255,139.41,139.39,7.1739]
[1719370278698,0.8588255,139.41,139.38,7.1745]
[1719370280697,0.8588255,139.41,139.39,7.174]
[1719370284706,8.0319255,139.41,139.35,7.1761]
[1719370284909,0.8588255,139.41,139.31,51.9977]
[1719370285098,7.1739,139.4,139.34,7.1766]
[1719370285303,8.0319255,139.41,139.34,7.1766]
[1719370285516,8.0319255,139.41,139.35,7.1761]
[1719370286925,0.8588255,139.41,139.35,7.1761]
[1719370287715,8.0319255,139.41,139.35,7.1761]
[1719370288006,7.1736,139.4,139.34,7.1765]
[1719370288203,0.8588255,139.41,139.33,25.1192]
[1719370288412,7.5139,139.4,139.34,7.1765]
[1719370288605,7.1739,139.4,139.34,7.1765]
[1719370288919,0.8588255,139.41,139.35,7.176]
[1719370289117,0.17,139.4,139.34,7.1766]
[1719370289442,0.34,139.4,139.34,7.1766]
[1719370290242,0.8588255,139.41,139.31,73.6177]
[1719370290530,0.8588255,139.41,139.37,25.1122]
[1719370290731,0.8588255,139.41,139.4,7.1736]
[1719370296738,0.8588255,139.41,139.35,58.1482]
[1719370296931,0.8588255,139.41,139.36,20.0]
[1719370297133,0.8588255,139.41,139.4,7.1736]
[1719370300134,0.8588255,139.41,139.4,7.3436]
[1719370300434,0.8588255,139.41,139.4,27.5136]
[1719370300811,0.8588255,139.41,139.4,27.3436]
[1719370301036,0.8588255,139.41,139.4,7.1736]
[1719370302008,0.8588255,139.41,139.39,7.1741]
[1719370302213,0.8588255,139.41,139.4,7.1736]
[1719370303114,0.8588255,139.41,139.39,7.1739]
[1719370303313,0.8588255,139.41,139.4,7.1736]
[1719370306530,0.8588255,139.41,139.38,17.9361]
[1719370307642,0.8588255,139.41,139.38,25.1106]
[1719370311517,0.8588255,139.41,139.38,17.9361]
[1719370313830,0.8588255,139.41,139.4,7.1736]
[1719370314946,0.8588255,139.41,139.39,7.174]
[1719370315832,0.8588255,139.41,139.4,7.1736]
[1719370316340,0.8588255,139.41,139.4,33.1536]
[1719370317945,0.8588255,139.41,139.4,7.1736]
[1719370320549,0.8588255,139.41,139.4,33.1536]
[1719370322642,0.8588255,139.41,139.4,7.1736]
[1719370323240,0.8588255,139.41,139.38,25.1105]
[1719370323446,0.8588255,139.41,139.38,17.9361]
[1719370323845,0.8588255,139.41,139.36,7.1756]
[1719370324051,0.8588255,139.41,139.35,25.1156]
[1719370324433,0.8588255,139.41,139.36,7.1756]
[1719370324629,0.8588255,139.41,139.37,7.1749]
[1719370327634,0.8588255,139.41,139.37,25.1117]
[1719370327840,0.8588255,139.41,139.36,7.1754]
[1719370329459,0.8588255,139.41,139.37,7.175]
[1719370330362,0.8588255,139.41,139.38,7.1745]
[1719370331248,0.8588255,139.41,139.37,7.1751]
[1719370331448,0.8588255,139.41,139.36,25.1143]
[1719370332061,0.8588255,139.41,139.37,7.1746]
[1719370334247,0.8588255,139.41,139.38,7.1745]
[1719370334758,0.8588255,139.41,139.37,7.175]
[1719370335661,0.8588255,139.41,139.36,25.1142]
[1719370336656,0.8588255,139.41,139.36,17.9388]
[1719370336858,0.17,139.4,139.33,17.9423]
[1719370337036,15.8207,139.38,139.33,17.9423]